{"text_format":"3","workbook":"xlsx","n_sheets":1,"sheets":["Pricing Sheet"],"not_rendered":{"external_links":2,"defined_names":8},"read":"whole","date_system":"1900"}

{"sheet":"Pricing Sheet","index":0,"n_rows":69,"n_cols":6,"rows_kept":69,"merged":[[1,0,1,5]]}
[]
["THE UNDERSIGNED CERTIFIES THAT (CONTRACTOR NAME)___________________________\nIS CURRENTLY REGISTERED WITH THE VIRGINIA STATE BOARD OF CONTRACTORS AS REQUIRED BY THE CODE OF VIRGINIA.  CERTIFICATE NUMBER _________________ WAS ISSUED ON THE ________DAY OF _____________, 20XX.  THE UNDERSIGNED FURTHER CERTIFIES THAT THE REGISTRATION FEE AND ALL RENEWAL FEES REQUIRED UNDER LAW HAVE BEEN PAID.  THE CONTRACTOR AGREES TO FURNISH ALL NECESSARY LABOR, EQUIPMENT, MATERIALS, AND ALL THINGS NECESSARY TO PERFORM THE WORK AS SET FORTH IN ACCORDANCE WITH THE PLANS AND SPECIFICATIONS. THE CONTRACTOR AGREES TO PERFORM RELATED WORK FOR THE FOLLOWING ITEMS AT THE FOLLOWING STIPULATED PRICES: (ALL PRICES INCLUDE PROVISION AND INSTALLATION)."]
[]
[]
["ITEM #","DESCRIPTION","QTY","UNIT","UNIT PRICE","TOTAL"]
["C1","GENERAL EARTHWORK"]
["ITEM #","DESCRIPTION","QTY","UNIT","UNIT PRICE","TOTAL"]
[1,"General Excavation, only when not included in other pay items",50,"CY",null,{"$f":"C8*E8","v":{"v":0,"d":"$0.00"}}]
[2,"Aggregate, VDOT #21-A  (Compacted in Place per VDOT standards & Specs)",60,"CY",null,{"$f":"C9*E9","v":{"v":0,"d":"$0.00"}}]
[{"$nulls":4},"SUBTOTAL",{"$f":"SUM(F8:F9)","v":{"v":0,"d":"$0.00"}}]
[]
["C2","CONCRETE WORK"]
["ITEM #","DESCRIPTION","QTY","UNIT","UNIT PRICE","TOTAL"]
[3,"Concrete Curb, Standard 6\" (VDOT CG-2), includes curb for aprons, ramps, etc.",200,"LF",null,{"$f":"C14*E14","v":{"v":0,"d":"$0.00"}}]
[4,"Concrete Curb & Gutter, Standard C-2 and C-2R (Arlington County Detail R-2.0), includes curb & gutter for aprons, ramps, etc.",100,"LF",null,{"$f":"C15*E15","v":{"v":0,"d":"$0.00"}}]
[5,"Concrete Curb & Gutter, Combination 6\" (VDOT CG-6), includes curb & gutter for aprons, ramps, etc.",300,"LF",null,{"v":0,"d":"$0.00"}]
[6,"Concrete Sidewalk, 4\" Thickness (Arlington County Detail R-2.0)",350,"SY",null,{"v":0,"d":"$0.00"}]
[7,"CG-12 Detectable Warning Surface - Truncated Domes",20,"SY",null,{"v":0,"d":"$0.00"}]
[{"$nulls":4},"SUBTOTAL",{"$f":"SUM(F14:F18)","v":{"v":0,"d":"$0.00"}}]
[]
["C3","ASPHALT WORK"]
["ITEM #","DESCRIPTION","QTY","UNIT","UNIT\nPRICE","TOTAL"]
[8,"Asphalt Concrete, Planing or Milling (1/2\" to 3\" Depth)",275,"SY",null,{"$f":"C23*E23","v":{"v":0,"d":"$0.00"}}]
[9,"Asphalt Concrete, Base Course (VDOT BM-25.0A)",60,"TON",null,{"$f":"C24*E24","v":{"v":0,"d":"$0.00"}}]
[10,"Asphalt Concrete, Surface Course (VDOT SM-9.5D)",20,"TON",null,{"v":0,"d":"$0.00"}]
[{"$nulls":4},"SUBTOTAL",{"$f":"SUM(F23:F25)","v":{"v":0,"d":"$0.00"}}]
[]
["C4","STORM SEWER UTILITY WORK"]
["ITEM #","DESCRIPTION","QTY","UNIT","UNIT\nPRICE","TOTAL"]
[11,"18\" Pipe, RCP Class III, In Place Up to 6' Deep",231,"LF",null,{"$f":"C30*E30","v":{"v":0,"d":"$0.00"}}]
[12,"Curb Drop Inlet, Standard VDOT DI-2C (12\" to 24\" Pipe), In Place Up to 9' Deep, Inlet Throat Length 6' to 20'",1,"EA",null,{"$f":"C31*E31","v":{"v":0,"d":"$0.00"}}]
[13,"Curb Drop Inlet, Standard VDOT DI-3B (12\" to 30\" Pipe), In Place Up to 8' Deep, Inlet Throat Length 4' to 20'",1,"EA",null,{"v":0,"d":"$0.00"}]
[null,"Convert Catch Basin to Manhole",2,"EA",null,{"v":0,"d":"$0.00"}]
[{"$nulls":4},"SUBTOTAL",{"$f":"SUM(F30:F33)","v":{"v":0,"d":"$0.00"}}]
[]
["C6","WATERMAIN WORK"]
["ITEM #","DESCRIPTION","QTY","UNIT","UNIT\nPRICE","TOTAL"]
[null,"Remove And Reset Existing Fire Hydrant",1,"EA",null,{"$f":"C38*E38","v":{"v":0,"d":"$0.00"}}]
[{"$nulls":4},"SUBTOTAL",{"$f":"SUM(F38)","v":{"v":0,"d":"$0.00"}}]
[]
["C8","TRAFFIC SIGNAL WORK"]
["ITEM #","DESCRIPTION","QTY","UNIT","UNIT\nPRICE","TOTAL"]
[null,"Traffic Signal Upgrade of Langston Blvd. & N. Cleveland Street (Only Traffic Signal Mast Arm Poles & Cabinet for the intersection will be provided by the County)",1,"LS",null,{"$f":"C43*E43","v":{"v":0,"d":"$0.00"}}]
[null,"Traffic Signal Upgrade of Langston Blvd. & Spout Run Pkway. (Only Traffic Signal Mast Arm Poles & Cabinet for the intersection will be provided by the County)",1,"LS",null,{"$f":"C44*E44","v":{"v":0,"d":"$0.00"}}]
[null,"Traffic Signal Upgrade of Langston Blvd. & N. Adams St. (Only Traffic Signal Mast Arm Poles & Cabinet for the intersection will be provided by the County)",1,"LS",null,{"v":0,"d":"$0.00"}]
[{"$nulls":4},"SUBTOTAL",{"$f":"SUM(F43:F45)","v":{"v":0,"d":"$0.00"}}]
[]
["C10","PAVEMENT MARKING AND SIGNAGE WORK"]
["ITEM #","DESCRIPTION","QTY","UNIT","UNIT\nPRICE","TOTAL"]
[null,"Eighteen (18) Inch Transverse Markings",35,"LF",null,{"$f":"C50*E50","v":{"v":0,"d":"$0.00"}}]
[null,"Twenty Four (24) Inch Transverse Markings, Note: Used For Continental (Ladder) Crosswalk",775,"LF",null,{"$f":"C51*E51","v":{"v":0,"d":"$0.00"}}]
[null,"Twelve (12) Inch Yellow Longitudinal Centerline, Two - Four (4) Inch Yellow Lines with Four (4) Inch Separation",90,"LF",null,{"v":0,"d":"$0.00"}]
[{"$nulls":4},"SUBTOTAL",{"$f":"SUM(F50:F52)","v":{"v":0,"d":"$0.00"}}]
[]
["C11","LANDSCAPE RESTORATION WORK"]
["ITEM #","DESCRIPTION","QTY","UNIT","UNIT\nPRICE","TOTAL"]
[null,"Imported Topsoil",2,"CY",null,{"$f":"C57*E57","v":{"v":0,"d":"$0.00"}}]
[null,"Seed, Mixture of 85% Tall Fescue/Bluegrass and 15% Annual Rye",15,"SY",null,{"$f":"C58*E58","v":{"v":0,"d":"$0.00"}}]
[{"$nulls":4},"SUBTOTAL",{"$f":"SUM(F57:F58)","v":{"v":0,"d":"$0.00"}}]
[]
[null,"E&SC, MOT & MOBILIZATION WORK"]
["ITEM #","DESCRIPTION","QTY","UNIT","UNIT\nPRICE","TOTAL"]
[null,"Temporary Erosion and Sediment Controls (E&SC) (For all three intersections)",1,"LS",null,{"$f":"C63*E63","v":{"v":0,"d":"$0.00"}}]
[null,"Maintenance of Traffic (For all three intersections)",1,"LS",null,{"$f":"C64*E64","v":{"v":0,"d":"$0.00"}}]
[null,"Mobilization and De-Mobilization (For all three intersections)",1,"LS",null,{"v":0,"d":"$0.00"}]
[{"$nulls":4},"SUBTOTAL",{"$f":"SUM(F63:F65)","v":{"v":0,"d":"$0.00"}}]
[]
[]
[{"$nulls":4}," CONTRACT TOTAL",{"$f":"SUM(F10,F19,F26,F34,F39,F46,F53,F59,F66)","v":{"v":0,"d":"$0.00"}}]